fUST/lending_fUST_20241014
["ID","MTS","AMOUNT","RATE_DAILY","PERIOD"]
[340249797,1728918649314,-205.660718,0.00041095,14]
[340249798,1728918649323,-500.0,0.00041095,30]
[340249799,1728918649332,-205.660718,0.00041095,14]
[340249800,1728918649342,-500.0,0.00041095,30]
[340249801,1728918649351,-205.660718,0.00041095,14]
[340249802,1728918649360,-500.0,0.00041095,30]
[340249803,1728918649370,-521.27558723,0.00041095,30]
[340249804,1728918649381,-500.0,0.00041095,30]
[340249805,1728918649392,-500.0,0.00041095,30]
[340249806,1728918649401,-205.660718,0.00041095,14]
[340249807,1728918649411,-684.06,0.00041095,30]
[340249808,1728918649421,-500.0,0.00041095,30]
[340249809,1728918649431,-205.660718,0.00041095,14]
[340249810,1728918649440,-205.660718,0.00041095,14]
[340249811,1728918649450,-500.0,0.00041095,30]
[340249812,1728918649460,-151.0,0.00041096,120]
[340249813,1728918649469,-151.0,0.00041236,120]
[340249814,1728918649478,-757.105824,0.00041236,120]
[340249815,1728918649487,-757.105824,0.00041236,120]
[340249816,1728918649496,-151.0,0.00041236,120]
[340249817,1728918649505,-151.0,0.00041236,120]
[340249818,1728918649515,-151.0,0.00041236,120]
[340249819,1728918649524,-151.0,0.00041236,120]
[340249820,1728918649533,-151.0,0.00041236,120]
[340249821,1728918649542,-192.07819,0.00041236,120]
[340249822,1728918649552,-192.07819,0.00041236,120]
[340249823,1728918649561,-151.0,0.00041246,120]
[340249824,1728918649571,-233.42858,0.00041246,120]
[340249825,1728918649581,-233.42858,0.00041246,120]
[340249826,1728918649590,-151.0,0.00041246,120]
[340249827,1728918649599,-225.639466,0.00041246,120]
[340249828,1728918649608,-225.639466,0.00041246,120]
[340249829,1728918649618,-180.900687,0.00041246,120]
[340249830,1728918649627,-180.900687,0.00041246,120]
[340249831,1728918649636,-151.0,0.00041246,120]
[340249832,1728918649646,-151.0,0.00041246,120]
[340249833,1728918649718,-1415.429102,0.00041246,120]
[340249834,1728918649728,-1415.429102,0.00041246,120]
[340249835,1728918649738,-1685.105336,0.00041246,60]
[340249836,1728918649748,-1685.105336,0.00041246,60]
[340249837,1728918649757,-151.0,0.00041246,120]
[340249838,1728918649767,-850.67558957,0.00041255,2]
[340249839,1728918649776,-13255.02428914,0.00041256,2]
[340249840,1728918649786,-150.112234,0.000413,8]
[340249841,1728918649795,-151.0,0.00041339,120]
[340249842,1728918649805,-151.0,0.00041339,120]
[340249843,1728918649814,-151.0,0.00041349,120]
[340249844,1728918649825,-151.0,0.00041349,120]
[340249845,1728918649834,-233.42858,0.00041349,120]
[340249846,1728918649843,-233.42858,0.00041349,120]
[340249847,1728918649853,-151.0,0.00041349,120]
[340249848,1728918649863,-225.639466,0.00041349,120]
[340249849,1728918649872,-225.639466,0.00041349,120]
[340249850,1728918649882,-151.0,0.00041349,120]
[340249851,1728918649891,-757.105824,0.00041349,120]
[340249852,1728918649900,-757.105824,0.00041349,120]
[340249853,1728918649910,-219.007517,0.00041349,120]
[340249854,1728918649919,-151.0,0.00041349,120]
[340249855,1728918649932,-151.0,0.00041349,120]
[340249856,1728918649941,-151.0,0.00041349,120]
[340249857,1728918649951,-151.0,0.00041349,120]
[340249858,1728918649961,-151.0,0.00041349,120]
[340249859,1728918649970,-151.0,0.00041349,120]
[340249860,1728918649980,-192.07819,0.00041349,120]
[340249861,1728918649989,-192.07819,0.00041349,120]
[340249862,1728918649998,-180.900687,0.00041349,120]
[340249863,1728918650007,-180.900687,0.00041349,120]
[340249864,1728918650017,-285.317308,0.00041349,120]
[340249865,1728918650027,-151.0,0.00041349,120]
[340249866,1728918650037,-1415.429102,0.00041349,120]
[340249867,1728918650047,-1415.429102,0.00041349,120]
[340249868,1728918650059,-1685.105336,0.00041349,60]
[340249869,1728918650069,-1685.105336,0.00041349,60]
[340249870,1728918650079,-151.0,0.00041349,120]
[340249871,1728918650088,-151.0,0.00041359,120]
[340249872,1728918650097,-151.0,0.00041359,120]
[340249873,1728918650109,-151.0,0.00041359,120]
[340249874,1728918650118,-233.42858,0.00041359,120]
[340249875,1728918650129,-233.42858,0.00041359,120]
[340249876,1728918650139,-151.0,0.00041359,120]
[340249877,1728918650149,-225.639466,0.00041359,120]
[340249878,1728918650158,-225.639466,0.00041359,120]
[340249879,1728918650168,-151.0,0.00041359,120]
[340249880,1728918650180,-757.105824,0.00041359,120]
[340249881,1728918650190,-757.105824,0.00041359,120]
[340249882,1728918650200,-151.0,0.00041359,120]
[340249883,1728918650210,-151.0,0.00041359,120]
[340249884,1728918650220,-227.317002,0.00041359,120]
[340249885,1728918650229,-151.0,0.00041359,120]
[340249886,1728918650239,-192.07819,0.00041359,120]
[340249887,1728918650248,-192.07819,0.00041359,120]
[340249888,1728918650257,-500.0,0.00041369,30]
[340249889,1728918650266,-521.62761402,0.00041369,30]
[340249890,1728918650276,-151.0,0.00041369,120]
[340249891,1728918650285,-502.71354708,0.00041369,30]
[340249892,1728918650295,-500.0,0.00041369,30]
[340249893,1728918650304,-500.0,0.00041369,30]
[340249894,1728918650314,-522.91900914,0.00041369,30]
[340249895,1728918650323,-380.07709492,0.00041369,30]
[340249896,1728918650354,-177.60528981,0.00041369,30]
[340249897,1728918650363,-535.86469279,0.00041369,30]
[340249898,1728918650373,-500.0,0.00041369,30]
[340249899,1728918650382,-500.0,0.00041369,30]
[340249900,1728918650391,-571.30142772,0.00041369,30]
[340249901,1728918650401,-500.0,0.00041369,30]
[340249902,1728918650411,-522.67966537,0.00041369,30]
[340249903,1728918650419,-604.97,0.00041369,30]
[340249904,1728918650430,-544.00635171,0.00041369,30]
[340249905,1728918650439,-403.92307553,0.00041369,30]
[340249906,1728918650449,-500.0,0.00041369,30]
[340249907,1728918650458,-528.41957309,0.00041369,30]
[340249908,1728918650467,-198.0,0.00041369,5]
[340249909,1728918650476,-151.0,0.00041369,120]
[340249910,1728918650485,-529.92274107,0.00041369,30]
[340249911,1728918650494,-500.0,0.00041369,30]
[340249912,1728918650503,-500.0,0.00041369,30]
[340249913,1728918650512,-500.0,0.00041369,30]
[340249914,1728918650521,-518.77,0.00041369,30]
[340249915,1728918650531,-500.0,0.00041369,30]
[340249916,1728918650540,-151.0,0.00041369,120]
[340249917,1728918650549,-500.0,0.00041369,30]
[340249918,1728918650559,-488.79541076,0.00041369,30]
[340249919,1728918650571,-11.20458924,0.00041369,30]
[340249920,1728918650580,-598.59,0.00041369,30]
[340249921,1728918650590,-503.9484808,0.00041369,30]
[340249922,1728918650599,-500.0,0.00041369,30]
[340249923,1728918650608,-578.23,0.00041369,30]
[340249924,1728918650617,-520.27598215,0.00041369,30]
[340249925,1728918650626,-500.0,0.00041369,30]
[340249926,1728918650636,-500.0,0.00041369,30]
[340249927,1728918650645,-500.0,0.00041369,30]
[340249928,1728918650655,-965.09,0.00041369,30]
[340249929,1728918650665,-467.07,0.00041369,30]
[340249930,1728918650676,-274.3825458,0.00041369,30]
[340249931,1728918650685,-156.30954989,0.00041369,30]
[340249932,1728918650694,-500.0,0.00041369,30]
[340249933,1728918650703,-500.0,0.00041369,30]
[340249934,1728918650712,-151.0,0.00041369,120]
[340249935,1728918650722,-1000.0,0.00041369,30]
[340249936,1728918650731,-500.0,0.00041369,30]
[340249937,1728918650740,-533.66493862,0.00041369,30]
[340249938,1728918650749,-500.0,0.00041369,30]
[340249939,1728918650758,-500.0,0.00041369,30]
[340249940,1728918650768,-475.12831798,0.00041369,30]
[340249941,1728918650777,-500.0,0.00041369,30]
[340249942,1728918650786,-500.0,0.00041369,30]
[340249943,1728918650795,-500.0,0.00041369,30]
[340249944,1728918650804,-500.0,0.00041369,30]
[340249945,1728918650813,-500.0,0.00041369,30]
[340249946,1728918650823,-500.0,0.00041369,30]
[340249947,1728918650890,-500.0,0.00041369,30]
[340249948,1728918650899,-500.0,0.00041369,30]
[340249949,1728918650909,-500.0,0.00041369,30]
[340249950,1728918650918,-520.54,0.00041369,30]
[340249951,1728918650929,-500.0,0.00041369,30]
[340249952,1728918650938,-500.0,0.00041369,30]
[340249953,1728918650948,-500.0,0.00041369,30]
[340249954,1728918650958,-527.94,0.00041369,30]
[340249955,1728918650967,-500.0,0.00041369,30]
[340249956,1728918650976,-500.0,0.00041369,30]
[340249957,1728918650985,-500.0,0.00041369,30]
[340249958,1728918650994,-523.79335468,0.00041369,30]
[340249959,1728918651003,-500.0,0.00041369,30]
[340249960,1728918651013,-500.0,0.00041369,30]
[340249961,1728918651022,-500.0,0.00041369,30]
[340249962,1728918651031,-584.39,0.00041369,30]
[340249963,1728918651040,-500.0,0.00041369,30]
[340249964,1728918651050,-333.24543506,0.00041369,30]
[340249965,1728918651060,-500.0,0.00041369,30]
[340249966,1728918651072,-500.0,0.00041369,30]
[340249967,1728918651081,-500.0,0.00041369,30]
[340249968,1728918651091,-500.0,0.00041369,30]
[340249969,1728918651100,-226.12756964,0.00041369,30]
[340249970,1728918651112,-500.0,0.00041369,30]
[340249971,1728918651122,-500.0,0.00041369,30]
[340249972,1728918651131,-500.0,0.00041369,30]
[340249973,1728918651144,-500.0,0.00041369,30]
[340249974,1728918651153,-460.42321049,0.00041369,30]
[340249975,1728918651163,-500.0,0.00041369,30]
[340249976,1728918651174,-500.0,0.00041369,30]
[340249977,1728918651183,-500.0,0.00041369,30]
[340249978,1728918651192,-500.0,0.00041369,30]
[340249979,1728918651201,-185.95256291,0.00041369,30]
[340249980,1728918651211,-500.0,0.00041369,30]
[340249981,1728918651220,-500.0,0.00041369,30]
[340249982,1728918651230,-1432.61,0.00041369,30]
[340249983,1728918651240,-500.0,0.00041369,30]
[340249984,1728918651249,-151.0,0.00041369,120]
[340249985,1728918651259,-500.0,0.00041369,30]
[340249986,1728918651268,-363.52603452,0.00041369,30]
[340249987,1728918651278,-500.0,0.00041369,30]
[340249988,1728918651288,-500.0,0.00041369,30]
[340249989,1728918651298,-500.0,0.00041369,30]
[340249990,1728918651307,-579.18944379,0.00041369,30]
[340249991,1728918651316,-500.0,0.00041369,30]
[340249992,1728918651326,-500.0,0.00041369,30]
[340249993,1728918651335,-500.0,0.00041369,30]
[340249994,1728918651345,-500.0,0.00041369,30]
[340249995,1728918651355,-547.8758489,0.00041369,30]
[340249996,1728918651364,-574.88510146,0.00041369,30]
[340249997,1728918651373,-500.0,0.00041369,30]
[340249998,1728918651383,-500.0,0.00041369,30]
[340249999,1728918651392,-500.0,0.00041369,30]
[340250000,1728918651402,-500.0,0.00041369,30]
[340250001,1728918651411,-1034.0,0.00041369,30]
[340250002,1728918651423,-500.0,0.00041369,30]
[340250003,1728918651433,-500.0,0.00041369,30]
[340250004,1728918651442,-500.0,0.00041369,30]
[340250005,1728918651452,-500.0,0.00041369,30]
[340250006,1728918651461,-500.0,0.00041369,30]
[340250007,1728918651470,-500.0,0.00041369,30]
[340250008,1728918651479,-500.0,0.00041369,30]
[340250009,1728918651489,-500.0,0.00041369,30]
[340250010,1728918651499,-585.02,0.00041369,30]
[340250011,1728918651508,-500.0,0.00041369,30]
[340250012,1728918651517,-537.05096431,0.00041369,30]
[340250013,1728918651527,-500.0,0.00041369,30]
[340250014,1728918651536,-466.58584451,0.00041369,30]
[340250015,1728918651546,-597.74731448,0.00041369,30]
[340250016,1728918651556,-500.0,0.00041369,30]
[340250017,1728918651565,-500.0,0.00041369,30]
[340250018,1728918651575,-500.0,0.00041369,30]
[340250019,1728918651584,-563.48,0.00041369,30]
[340250020,1728918651593,-169.45818717,0.00041369,30]
[340250021,1728918651603,-1463.67,0.00041369,30]
[340250022,1728918651612,-500.0,0.00041369,30]
[340250023,1728918651621,-976.8,0.00041369,30]
[340250024,1728918651630,-362.61360996,0.00041369,30]
[340250025,1728918651640,-500.0,0.00041369,30]
[340250026,1728918651649,-609.96609691,0.00041369,30]
[340250027,1728918651658,-500.0,0.00041369,30]
[340250028,1728918651667,-500.0,0.00041369,30]
[340250029,1728918651684,-364.83049961,0.00041369,30]
[340250030,1728918651693,-411.06324787,0.00041369,30]
[340250031,1728918651703,-500.0,0.00041369,30]
[340250032,1728918651712,-500.0,0.00041369,30]
[340250033,1728918651721,-1452.78,0.00041369,30]
[340250034,1728918651730,-151.0,0.00041369,120]
[340250035,1728918651740,-151.0,0.00041369,120]
[340250036,1728918651750,-500.0,0.00041369,30]
[340250037,1728918651761,-233.42858,0.00041369,120]
[340250038,1728918651772,-233.42858,0.00041369,120]
[340250039,1728918651781,-500.0,0.00041369,30]
[340250040,1728918651791,-500.0,0.00041369,30]
[340250041,1728918651801,-526.10195113,0.00041369,30]
[340250042,1728918651810,-500.0,0.00041369,30]
[340250043,1728918651820,-233.42858,0.00041369,120]
[340250044,1728918651831,-499.32835364,0.00041369,30]
[340250045,1728918651840,-233.42858,0.00041369,120]
[340250046,1728918651849,-500.0,0.00041369,30]
[340250047,1728918651858,-524.52889598,0.00041369,30]
[340250048,1728918651867,-500.0,0.00041369,30]
[340250049,1728918651876,-500.0,0.00041369,30]
[340250050,1728918651885,-500.0,0.00041369,30]
[340250051,1728918651894,-500.0,0.00041369,30]
[340250052,1728918651958,-543.93156362,0.00041369,30]
[340250053,1728918651968,-500.0,0.00041369,30]
[340250054,1728918651977,-500.0,0.00041369,30]
[340250055,1728918651986,-500.0,0.00041369,30]
[340250056,1728918651995,-500.0,0.00041369,30]
[340250057,1728918652004,-256.88760209,0.00041369,30]
[340250058,1728918652013,-518.96458283,0.00041369,30]
[340250059,1728918652023,-500.0,0.00041369,30]
[340250060,1728918652032,-261.64962859,0.00041369,30]
[340250061,1728918652041,-666.12,0.00041369,30]
[340250062,1728918652052,-500.0,0.00041369,30]
[340250063,1728918652064,-500.0,0.00041369,30]
[340250064,1728918652073,-373.69155887,0.00041369,30]
[340250065,1728918652082,-500.0,0.00041369,2]
[340250066,1728918652091,-500.0,0.00041369,30]
[340250067,1728918652101,-500.0,0.00041369,30]
[340250068,1728918652111,-500.0,0.00041369,30]
[340250069,1728918652120,-500.0,0.00041369,30]
[340250070,1728918652129,-534.37783736,0.00041369,30]
[340250071,1728918652141,-500.0,0.00041369,30]
[340250072,1728918652151,-635.51,0.00041369,30]
[340250073,1728918652160,-500.0,0.00041369,30]
[340250074,1728918652170,-544.5,0.00041369,30]
[340250075,1728918652180,-500.0,0.00041369,30]
[340250076,1728918652190,-500.0,0.00041369,30]
[340250077,1728918652199,-500.0,0.00041369,30]
[340250078,1728918652208,-500.0,0.00041369,30]
[340250079,1728918652218,-500.0,0.00041369,30]
[340250080,1728918652227,-500.0,0.00041369,30]
[340250081,1728918652237,-500.0,0.00041369,30]
[340250082,1728918652246,-519.84798008,0.00041369,30]
[340250083,1728918652256,-151.0,0.00041369,120]
[340250084,1728918652266,-151.0,0.00041369,120]
[340250085,1728918652275,-533.76,0.00041369,30]
[340250086,1728918652284,-500.0,0.00041369,30]
[340250087,1728918652293,-500.0,0.00041369,30]
[340250088,1728918652302,-500.0,0.00041369,30]
[340250089,1728918652311,-524.75515833,0.00041369,30]
[340250090,1728918652320,-500.0,0.00041369,30]
[340250091,1728918652330,-500.0,0.00041369,30]
[340250092,1728918652339,-500.0,0.00041369,30]
[340250093,1728918652348,-500.0,0.00041369,30]
[340250094,1728918652358,-500.0,0.00041369,30]
[340250095,1728918652367,-152.20776078,0.00041369,30]
[340250096,1728918652377,-500.0,0.00041369,30]
[340250097,1728918652386,-544.68,0.00041369,30]
[340250098,1728918652395,-500.0,0.00041369,30]
[340250099,1728918652404,-500.0,0.00041369,30]
[340250100,1728918652414,-500.0,0.00041369,30]
[340250101,1728918652424,-500.0,0.00041369,30]
[340250102,1728918652433,-500.0,0.00041369,30]
[340250103,1728918652443,-225.639466,0.00041369,120]
[340250104,1728918652452,-225.639466,0.00041369,120]
[340250105,1728918652462,-500.0,0.00041369,30]
[340250106,1728918652471,-225.639466,0.00041369,120]
[340250107,1728918652481,-500.0,0.00041369,30]
[340250108,1728918652490,-225.639466,0.00041369,120]
[340250109,1728918652499,-547.15372964,0.00041369,30]
[340250110,1728918652509,-500.0,0.00041369,30]
[340250111,1728918652518,-500.0,0.00041369,30]
[340250112,1728918652528,-500.0,0.00041369,30]
[340250113,1728918652537,-500.0,0.00041369,30]
[340250114,1728918652546,-286.096435,0.00041369,120]
[340250115,1728918652556,-500.0,0.00041369,30]
[340250116,1728918652565,-500.0,0.00041369,30]
[340250117,1728918652575,-500.0,0.00041369,30]
[340250118,1728918652584,-757.105824,0.00041369,120]
[340250119,1728918652593,-757.105824,0.00041369,120]
[340250120,1728918652602,-500.0,0.00041369,30]
[340250121,1728918652611,-376.65362032,0.00041369,30]
[340250122,1728918652621,-757.105824,0.00041369,120]
[340250123,1728918652631,-757.105824,0.00041369,120]
[340250124,1728918652640,-500.0,0.00041369,30]
[340250125,1728918652649,-500.0,0.00041369,30]
[340250126,1728918652659,-500.0,0.00041369,30]
[340250127,1728918652668,-500.0,0.00041369,30]
[340250128,1728918652679,-500.0,0.00041369,30]
[340250129,1728918652688,-500.0,0.00041369,30]
[340250130,1728918652700,-543.31983847,0.00041369,30]
[340250131,1728918652710,-151.0,0.00041369,120]
[340250132,1728918652720,-151.0,0.00041369,120]
[340250133,1728918652729,-500.0,0.00041369,30]
[340250134,1728918652738,-500.0,0.00041369,30]
[340250135,1728918652748,-500.0,0.00041369,30]
[340250136,1728918652757,-500.0,0.00041369,30]
[340250137,1728918652766,-500.0,0.00041369,30]
[340250138,1728918652776,-518.54279673,0.00041369,30]
[340250139,1728918652785,-500.0,0.00041369,30]
[340250140,1728918652794,-507.92,0.00041369,30]
[340250141,1728918652803,-500.0,0.00041369,30]
[340250142,1728918652812,-500.0,0.00041369,30]
[340250143,1728918652821,-587.83633393,0.00041369,30]
[340250144,1728918652831,-500.0,0.00041369,30]
[340250145,1728918652840,-500.0,0.00041369,30]
[340250146,1728918652849,-500.0,0.00041369,30]
[340250147,1728918652859,-535.99725762,0.00041369,30]
[340250148,1728918652868,-500.0,0.00041369,30]
[340250149,1728918652932,-570.64,0.00041369,30]
[340250150,1728918652942,-500.0,0.00041369,30]
[340250151,1728918652951,-500.0,0.00041369,30]
[340250152,1728918652962,-547.763197,0.00041369,30]
[340250153,1728918652971,-500.0,0.00041369,30]
[340250154,1728918652980,-500.0,0.00041369,30]
[340250155,1728918652990,-151.0,0.00041369,120]
[340250156,1728918652999,-151.0,0.00041369,120]
[340250157,1728918653008,-604.1,0.00041369,30]
[340250158,1728918653018,-521.0059785,0.00041369,30]
[340250159,1728918653027,-294.30994,0.00041369,120]
[340250160,1728918653036,-500.0,0.00041369,30]
[340250161,1728918653045,-546.63912919,0.00041369,30]
[340250162,1728918653056,-168.83320558,0.00041369,30]
[340250163,1728918653071,-500.0,0.00041369,30]
[340250164,1728918653082,-500.0,0.00041369,30]
[340250165,1728918653091,-520.2916056,0.00041369,30]
[340250166,1728918653101,-151.0,0.00041369,120]
[340250167,1728918653111,-151.0,0.00041369,120]
[340250168,1728918653120,-708.07,0.00041369,30]
[340250169,1728918653129,-500.0,0.00041369,30]
[340250170,1728918653140,-547.19210691,0.00041369,30]
[340250171,1728918653149,-249.69004541,0.00041369,30]
[340250172,1728918653158,-500.0,0.00041369,30]
[340250173,1728918653167,-500.0,0.00041369,30]
[340250174,1728918653178,-1192.97,0.00041369,30]
[340250175,1728918653187,-346.58905982,0.00041369,30]
[340250176,1728918653196,-500.0,0.00041369,30]
[340250177,1728918653206,-500.0,0.00041369,30]
[340250178,1728918653215,-500.0,0.00041369,30]
[340250179,1728918653224,-178.085864,0.00041369,120]
[340250180,1728918653233,-509.85,0.00041369,30]
[340250181,1728918653243,-500.0,0.00041369,30]
[340250182,1728918653253,-150.6340509,0.00041369,30]
[340250183,1728918653262,-582.34606529,0.00041369,30]
[340250184,1728918653272,-786.91,0.00041369,30]
[340250185,1728918653281,-500.0,0.00041369,30]
[340250186,1728918653291,-500.0,0.00041369,30]
[340250187,1728918653300,-500.0,0.00041369,30]
[340250188,1728918653309,-1101.34727893,0.00041369,30]
[340250189,1728918653318,-500.0,0.00041369,30]
[340250190,1728918653328,-500.0,0.00041369,30]
[340250191,1728918653337,-192.07819,0.00041369,120]
[340250192,1728918653348,-192.07819,0.00041369,120]
[340250193,1728918653358,-500.0,0.00041369,30]
[340250194,1728918653376,-180.900687,0.00041369,120]
[340250195,1728918653397,-319.22083411,0.00041369,30]
[340250196,1728918653415,-192.07819,0.00041369,120]
[340250197,1728918653437,-180.900687,0.00041369,120]
[340250198,1728918653458,-192.07819,0.00041369,120]
[340250199,1728918653475,-180.900687,0.00041369,120]
[340250200,1728918653494,-500.0,0.00041369,30]
[340250201,1728918653508,-500.0,0.00041369,30]
[340250202,1728918653525,-500.0,0.00041369,30]
[340250203,1728918653542,-180.900687,0.00041369,120]
[340250204,1728918653561,-180.900687,0.00041369,120]
[340250205,1728918653575,-500.0,0.00041369,30]
[340250206,1728918653590,-180.900687,0.00041369,120]
[340250207,1728918653606,-500.0,0.00041369,30]
[340250208,1728918653622,-518.2285763,0.00041369,30]
[340250209,1728918653637,-523.23838132,0.00041369,30]
[340250210,1728918653650,-500.0,0.00041369,30]
[340250211,1728918653664,-500.0,0.00041369,30]
[340250212,1728918653679,-742.44,0.00041369,30]
[340250213,1728918653693,-500.0,0.00041369,30]
[340250214,1728918653708,-500.0,0.00041369,30]
[340250215,1728918653722,-500.0,0.00041369,30]
[340250216,1728918653736,-500.0,0.00041369,30]
[340250217,1728918653752,-436.46716149,0.00041369,30]
[340250218,1728918653767,-500.0,0.00041369,30]
[340250219,1728918653782,-508.26921173,0.00041369,30]
[340250220,1728918653796,-510.27934418,0.00041369,30]
[340250221,1728918653811,-500.0,0.00041369,30]
[340250222,1728918653825,-500.0,0.00041369,30]
[340250223,1728918653840,-222.631673,0.00041369,120]
[340250224,1728918653855,-500.0,0.00041369,30]
[340250225,1728918653870,-500.0,0.00041369,30]
[340250226,1728918653885,-406.39027659,0.00041369,30]
[340250227,1728918653898,-500.0,0.00041369,30]
[340250228,1728918653908,-715.35,0.00041369,30]
[340250229,1728918653919,-500.0,0.00041369,30]
[340250230,1728918653930,-500.0,0.00041369,30]
[340250231,1728918653939,-500.0,0.00041369,30]
[340250232,1728918653948,-512.19,0.00041369,30]
[340250233,1728918653958,-576.74234869,0.00041369,30]
[340250234,1728918653969,-154.20151865,0.00041369,30]
[340250235,1728918653979,-500.0,0.00041369,30]
[340250236,1728918653990,-500.0,0.00041369,30]
[340250237,1728918653999,-542.03,0.00041369,30]
[340250238,1728918654138,-1415.429102,0.00041369,120]
[340250239,1728918654148,-1415.429102,0.00041369,120]
[340250240,1728918654157,-1415.429102,0.00041369,120]
[340250241,1728918654166,-1415.429102,0.00041369,120]
[340250242,1728918654177,-500.0,0.00041369,30]
[340250243,1728918654186,-1415.429102,0.00041369,120]
[340250244,1728918654196,-1415.429102,0.00041369,120]
[340250245,1728918654205,-734.61,0.00041369,30]
[340250246,1728918654215,-618.78735398,0.00041369,30]
[340250247,1728918654225,-500.0,0.00041369,30]
[340250248,1728918654234,-500.0,0.00041369,30]
[340250249,1728918654244,-1685.105336,0.00041369,60]
[340250250,1728918654254,-1685.105336,0.00041369,60]
[340250251,1728918654263,-1685.105336,0.00041369,60]
[340250252,1728918654273,-500.0,0.00041369,30]
[340250253,1728918654282,-500.0,0.00041369,30]
[340250254,1728918654292,-1685.105336,0.00041369,60]
[340250255,1728918654302,-1685.105336,0.00041369,60]
[340250256,1728918654311,-1685.105336,0.00041369,60]
[340250257,1728918654322,-500.0,0.00041369,30]
[340250258,1728918654333,-500.0,0.00041369,30]
[340250259,1728918654344,-151.0,0.00041369,120]
[340250260,1728918654353,-151.0,0.00041369,120]
[340250261,1728918654362,-159.703875,0.00041369,120]
[340250262,1728918654372,-500.0,0.00041369,30]
[340250263,1728918654381,-603.25117459,0.00041369,30]
[340250264,1728918654391,-544.32808928,0.00041369,30]
[340250265,1728918654399,-500.0,0.00041369,30]
[340250266,1728918654409,-525.67933545,0.00041369,30]
[340250267,1728918654418,-528.39,0.00041369,30]
[340250268,1728918654429,-521.21404085,0.00041369,30]
[340250269,1728918654438,-500.0,0.00041369,30]
[340250270,1728918654448,-606.71,0.00041369,30]
[340250271,1728918654457,-500.00000001,0.00041369,30]
[340250272,1728918654466,-500.0,0.00041369,30]
[340250273,1728918654477,-500.0,0.00041369,30]
[340250274,1728918654486,-500.0,0.00041369,30]
[340250275,1728918654495,-500.0,0.00041369,30]
[340250276,1728918654504,-500.0,0.00041369,30]
[340250277,1728918654513,-500.0,0.00041369,30]
[340250278,1728918654523,-500.0,0.00041369,30]
[340250279,1728918654532,-500.0,0.00041369,30]
[340250280,1728918654541,-500.0,0.00041369,30]
[340250281,1728918654550,-500.0,0.00041369,30]
[340250282,1728918654560,-500.0,0.00041369,30]
[340250283,1728918654569,-151.0,0.00041369,120]
[340250284,1728918654578,-151.0,0.00041369,120]
[340250285,1728918654587,-500.0,0.00041369,30]
[340250286,1728918654596,-500.0,0.00041369,30]
[340250287,1728918654605,-151.0,0.00041369,120]
[340250288,1728918654614,-260.351752,0.00041369,120]
[340250289,1728918654624,-500.0,0.00041369,30]
[340250290,1728918654635,-584.30655158,0.00041369,30]
[340250291,1728918654646,-500.0,0.00041369,30]
[340250292,1728918654656,-532.15924144,0.00041369,30]
[340250293,1728918654666,-500.0,0.00041369,30]
[340250294,1728918654677,-205.660718,0.00041369,120]
[340250295,1728918654688,-205.660718,0.00041369,120]
[340250296,1728918654697,-500.0,0.00041369,30]